fUSD/lending_fUSD_20240218
["ID","MTS","AMOUNT","RATE_DAILY","PERIOD"]
[314382410,1708251031854,-598.00438023,0.0003,4]
[314382411,1708251031864,-200.0,0.0003,2]
[314382412,1708251031873,-194.93709367,0.0003057,5]
[314382413,1708251031882,-721.82880096,0.00030666,4]
[314382414,1708251031891,-300.57687551,0.00030666,4]
[314382415,1708251031901,-214.8336042,0.00030667,2]
[314382416,1708251031914,-2000.5690659,0.00030668,2]
[314382417,1708251031926,-454402.60485791,0.00030668,2]
[314382418,1708251031936,-11994.6719,0.0003067,2]
[314382419,1708251031945,-861.54676005,0.00030767,4]
[314382420,1708251031955,-214.8336041,0.00030985,2]
[314382421,1708251031967,-691.67,0.00030985,2]
[314382422,1708251031976,-155.0,0.00031,4]
[314382423,1708251031986,-975.66,0.00031088,2]
[314382424,1708251031995,-283.62,0.00031106,2]
[314382425,1708251032005,-1000.0,0.00031131,2]
[314382426,1708251032014,-324.97,0.00031213,2]
[314382427,1708251032023,-214.8336041,0.00031303,2]
[314382428,1708251032032,-2000.0,0.00031319,2]
[314382429,1708251032041,-500.0,0.0003139,2]
[314382430,1708251032050,-161.2631722,0.000314,120]
[314382431,1708251032060,-381.18,0.00031414,2]
[314382432,1708251032069,-250.0,0.00031456,2]
[314382433,1708251032078,-522.54,0.0003146,2]
[314382434,1708251032087,-381.18,0.000315,2]
[314382435,1708251032097,-381.18,0.00031586,2]
[314382436,1708251032108,-194.93709364,0.00031617,5]
[314382437,1708251032117,-214.8336041,0.00031621,2]
[314382438,1708251032126,-381.18,0.00031672,2]
[314382439,1708251032135,-381.18,0.00031759,2]
[314382440,1708251032145,-206.0,0.00031833,2]
[314382441,1708251032155,-381.18,0.00031845,2]
[314382442,1708251032165,-177.88,0.00031871,2]
[314382443,1708251032175,-381.18,0.00031931,2]
[314382444,1708251032185,-214.8336041,0.00031939,2]
[314382445,1708251032195,-705.13958715,0.00032,4]
[314382446,1708251032205,-381.18,0.00032017,2]
[314382447,1708251032216,-381.18,0.00032103,2]
[314382448,1708251032226,-381.18,0.00032189,2]
[314382449,1708251032236,-214.8336041,0.00032257,2]
[314382450,1708251032246,-381.18,0.00032276,2]
[314382451,1708251032256,-19641.97,0.00032324,2]
[314382452,1708251032265,-381.18,0.00032362,2]
[314382453,1708251032274,-381.18,0.00032448,2]
[314382454,1708251032283,-381.18,0.00032534,2]
[314382455,1708251032293,-150.99,0.00032546,2]
[314382456,1708251032302,-165.75,0.00032566,2]
[314382457,1708251032311,-214.8336041,0.00032575,2]
[314382458,1708251032320,-381.18,0.0003262,2]
[314382459,1708251032329,-174.74,0.00032629,120]
[314382460,1708251032338,-194.93709364,0.00032664,6]
[314382461,1708251032347,-381.18,0.00032706,2]
[314382462,1708251032356,-975.66,0.00032732,2]
[314382463,1708251032365,-381.18,0.00032793,2]
[314382464,1708251032374,-593.27,0.00032827,2]
[314382465,1708251032383,-381.18,0.00032879,2]
[314382466,1708251032393,-214.8336041,0.00032893,2]
[314382467,1708251032402,-381.18,0.00032965,2]
[314382468,1708251032411,-381.18,0.00033051,2]
[314382469,1708251032420,-645.77,0.00033095,2]
[314382470,1708251032428,-479.01122374,0.000331,2]
[314382471,1708251032437,-214.8336041,0.00033211,2]
[314382472,1708251032447,-1160.65684389,0.00033255,2]
[314382473,1708251032455,-152105.0,0.00033266,2]
[314382474,1708251032466,-1255.47,0.00033301,2]
[314382475,1708251032475,-272.86935079,0.00033351,4]
[314382476,1708251032484,-21228.62,0.00033352,2]
[314382477,1708251032493,-499.99,0.00033352,2]
[314382478,1708251032503,-177.88,0.00033465,2]
[314382479,1708251032511,-214.8336041,0.00033529,2]
[314382480,1708251032521,-194.93709364,0.00033711,6]
[314382481,1708251032530,-522.54,0.00033724,2]
[314382482,1708251032539,-214.8336041,0.00033846,2]
[314382483,1708251032547,-1519.33,0.00033949,2]
[314382484,1708251032557,-173.96,0.00034014,2]
[314382485,1708251032566,-423.61,0.00034095,2]
[314382486,1708251032575,-1519.33,0.00034127,2]
[314382487,1708251032584,-616.65,0.00034135,2]
[314382488,1708251032593,-214.8336041,0.00034164,2]
[314382489,1708251032602,-153.7,0.00034284,2]
[314382490,1708251032611,-1519.33,0.00034306,2]
[314382491,1708251032619,-975.66,0.00034376,2]
[314382492,1708251032629,-214.8336041,0.00034482,2]
[314382493,1708251032638,-1519.33,0.00034485,2]
[314382494,1708251032647,-1161.75,0.00034521,2]
[314382495,1708251032656,-166.02,0.00034523,2]
[314382496,1708251032665,-20187.0,0.000346,2]
[314382497,1708251032674,-3000.0,0.0003463,2]
[314382498,1708251032683,-1519.33,0.00034664,2]
[314382499,1708251032692,-586.82141126,0.000347,2]
[314382500,1708251032702,-194.93709364,0.00034759,7]
[314382501,1708251032712,-2497.243107,0.000348,2]
[314382502,1708251032721,-36128.56525,0.000348,2]
[314382503,1708251032730,-10399.4384,0.000348,2]
[314382504,1708251032740,-11235.3957,0.000348,2]
[314382505,1708251032749,-214.8336041,0.000348,2]
[314382506,1708251032758,-1519.33,0.00034842,2]
[314382507,1708251032769,-153.63722133,0.00034894,2]
[314382508,1708251032778,-164.38059096,0.00034894,7]
[314382509,1708251032789,-174.10377238,0.00034894,2]
[314382510,1708251032798,-1242.94096916,0.000349,2]
[314382511,1708251032807,-1242.94096905,0.000349,2]
[314382512,1708251032816,-481.43943597,0.000349,7]
[314382513,1708251032826,-1180.74790279,0.00034978,4]
[314382514,1708251033037,-363.44886218,0.00034978,4]
[314382515,1708251033047,-299451.42996357,0.0003498,2]
[314382516,1708251033057,-429.08214379,0.00035,4]
[314382517,1708251033067,-103904.0565421,0.00035,4]
[314382518,1708251033076,-1482.62259,0.00035,2]
[314382519,1708251033085,-4061.27855304,0.00035016,7]
[314382520,1708251033095,-1519.33,0.00035021,2]
[314382521,1708251033104,-1000.0,0.00035023,2]
[314382522,1708251033113,-177.88,0.00035058,2]
[314382523,1708251033122,-2296.0,0.000351,2]
[314382524,1708251033131,-214.8336041,0.00035118,2]
[314382525,1708251033140,-173.08,0.00035119,2]
[314382526,1708251033149,-153.7,0.00035174,2]
[314382527,1708251033159,-1519.33,0.000352,2]
[314382528,1708251033169,-1289.02422157,0.00035237,2]
[314382529,1708251033178,-4061.27855302,0.00035282,7]
[314382530,1708251033187,-616.65,0.00035342,2]
[314382531,1708251033197,-1519.33,0.00035378,2]
[314382532,1708251033206,-586.82141125,0.00035424,2]
[314382533,1708251033218,-214.8336041,0.00035436,2]
[314382534,1708251033227,-151.0,0.0003549,120]
[314382535,1708251033237,-4061.27855302,0.00035548,8]
[314382536,1708251033246,-1519.33,0.00035557,2]
[314382537,1708251033256,-511.0,0.000356,2]
[314382538,1708251033267,-200.0,0.00035616,2]
[314382539,1708251033276,-200.0,0.00035616,2]
[314382540,1708251033285,-201.0,0.00035616,2]
[314382541,1708251033294,-500.0,0.00035616,2]
[314382542,1708251033303,-500.0,0.00035616,2]
[314382543,1708251033312,-158.41825313,0.00035616,2]
[314382544,1708251033321,-500.0,0.00035616,2]
[314382545,1708251033330,-406.24650244,0.00035616,2]
[314382546,1708251033339,-565.66481641,0.00035616,2]
[314382547,1708251033348,-500.0,0.00035616,2]
[314382548,1708251033357,-519.69125729,0.00035616,2]
[314382549,1708251033367,-500.0,0.00035616,2]
[314382550,1708251033377,-1000.0,0.00035616,7]
[314382551,1708251033386,-500.0,0.00035616,2]
[314382552,1708251033395,-500.0,0.00035616,2]
[314382553,1708251033404,-500.0,0.00035616,2]
[314382554,1708251033412,-537.48,0.00035616,2]
[314382555,1708251033422,-537.48,0.00035616,2]
[314382556,1708251033431,-537.48,0.00035616,2]
[314382557,1708251033440,-677.35,0.00035616,2]
[314382558,1708251033449,-677.35,0.00035616,2]
[314382559,1708251033458,-677.35,0.00035616,2]
[314382560,1708251033469,-500.0,0.00035616,2]
[314382561,1708251033478,-514.50819855,0.00035616,2]
[314382562,1708251033488,-500.0,0.00035616,2]
[314382563,1708251033497,-388.09685338,0.00035616,2]
[314382564,1708251033506,-500.0,0.00035616,2]
[314382565,1708251033514,-532.97332932,0.00035616,2]
[314382566,1708251033524,-455.66423478,0.00035616,2]
[314382567,1708251033533,-440.76339518,0.00035616,2]
[314382568,1708251033542,-500.0,0.00035616,2]
[314382569,1708251033551,-500.0,0.00035616,2]
[314382570,1708251033560,-511.28960051,0.00035616,2]
[314382571,1708251033569,-532.01847119,0.00035616,2]
[314382572,1708251033579,-561.0770641,0.00035616,2]
[314382573,1708251033588,-543.26422418,0.00035616,2]
[314382574,1708251033597,-571.85935008,0.00035616,2]
[314382575,1708251033606,-500.0,0.00035616,2]
[314382576,1708251033615,-500.0,0.00035616,2]
[314382577,1708251033624,-500.0,0.00035616,2]
[314382578,1708251033633,-500.0,0.00035616,2]
[314382579,1708251033642,-519.84028942,0.00035616,2]
[314382580,1708251033652,-500.0,0.00035616,2]
[314382581,1708251033661,-500.0,0.00035616,2]
[314382582,1708251033671,-500.0,0.00035616,2]
[314382583,1708251033680,-500.0,0.00035616,2]
[314382584,1708251033690,-500.0,0.00035616,2]
[314382585,1708251033699,-500.0,0.00035616,2]
[314382586,1708251033708,-500.0,0.00035616,2]
[314382587,1708251033719,-500.0,0.00035616,2]
[314382588,1708251033728,-500.0,0.00035616,2]
[314382589,1708251033738,-500.0,0.00035616,2]
[314382590,1708251033747,-500.0,0.00035616,2]
[314382591,1708251033757,-544.52340677,0.00035616,2]
[314382592,1708251033768,-507.61216537,0.00035616,2]
[314382593,1708251033777,-503.72618845,0.00035616,2]
[314382594,1708251033787,-528.85548602,0.00035616,2]
[314382595,1708251033796,-582.94723874,0.00035616,2]
[314382596,1708251033806,-519.76835945,0.00035616,2]
[314382597,1708251033815,-500.0,0.00035616,2]
[314382598,1708251033824,-500.0,0.00035616,2]
[314382599,1708251033834,-500.0,0.00035616,2]
[314382600,1708251033844,-500.0,0.00035616,2]
[314382601,1708251033854,-500.0,0.00035616,2]
[314382602,1708251033863,-500.0,0.00035616,2]
[314382603,1708251033872,-573.94504127,0.00035616,2]
[314382604,1708251033881,-531.44958775,0.00035616,2]
[314382605,1708251033891,-500.0,0.00035616,2]
[314382606,1708251033900,-500.0,0.00035616,2]
[314382607,1708251033909,-500.0,0.00035616,2]
[314382608,1708251033919,-500.0,0.00035616,2]
[314382609,1708251033928,-512.17457987,0.00035616,2]
[314382610,1708251033937,-500.0,0.00035616,2]
[314382611,1708251033946,-500.0,0.00035616,2]
[314382612,1708251033956,-529.36821886,0.00035616,2]
[314382613,1708251033965,-500.0,0.00035616,2]
[314382614,1708251033975,-571.18545176,0.00035616,2]
[314382615,1708251033984,-466.56631101,0.00035616,4]
[314382616,1708251033994,-163.39541532,0.00035616,2]
[314382617,1708251034003,-500.0,0.00035616,2]
[314382618,1708251034012,-500.0,0.00035616,2]
[314382619,1708251034021,-572.46817713,0.00035616,2]
[314382620,1708251034031,-500.0,0.00035616,2]
[314382621,1708251034040,-414.00344976,0.00035616,2]
[314382622,1708251034049,-500.0,0.00035616,2]
[314382623,1708251034058,-187.29639911,0.00035616,2]
[314382624,1708251034068,-500.0,0.00035616,2]
[314382625,1708251034077,-500.0,0.00035616,2]
[314382626,1708251034086,-585.81711032,0.00035616,2]
[314382627,1708251034095,-500.0,0.00035616,2]
[314382628,1708251034104,-500.0,0.00035616,2]
[314382629,1708251034113,-500.0,0.00035616,2]
[314382630,1708251034122,-500.0,0.00035616,2]
[314382631,1708251034131,-500.0,0.00035616,2]
[314382632,1708251034140,-500.0,0.00035616,2]
[314382633,1708251034150,-500.0,0.00035616,2]
[314382634,1708251034159,-646.34878066,0.00035616,2]
[314382635,1708251034171,-500.0,0.00035616,7]
[314382636,1708251034180,-500.0,0.00035616,7]
[314382637,1708251034189,-527.08202019,0.00035616,2]
[314382638,1708251034199,-500.0,0.00035616,7]
[314382639,1708251034208,-278.43890283,0.00035616,2]
[314382640,1708251034219,-500.0,0.00035616,7]
[314382641,1708251034227,-500.0,0.00035616,7]
[314382642,1708251034236,-500.0,0.00035616,7]
[314382643,1708251034248,-500.0,0.00035616,2]
[314382644,1708251034257,-500.0,0.00035616,2]
[314382645,1708251034266,-500.0,0.00035616,2]
[314382646,1708251034283,-500.0,0.00035616,2]
[314382647,1708251034296,-500.0,0.00035616,2]
[314382648,1708251034305,-500.0,0.00035616,2]
[314382649,1708251034314,-500.0,0.00035616,2]
[314382650,1708251034323,-500.0,0.00035616,2]
[314382651,1708251034333,-500.0,0.00035616,2]
[314382652,1708251034342,-500.0,0.00035616,2]
[314382653,1708251034352,-500.0,0.00035616,2]
[314382654,1708251034361,-414.40545887,0.00035616,2]
[314382655,1708251034371,-500.0,0.00035616,2]
[314382656,1708251034380,-500.0,0.00035616,2]
[314382657,1708251034390,-500.0,0.00035616,2]
[314382658,1708251034400,-500.0,0.00035616,2]
[314382659,1708251034409,-500.0,0.00035616,2]
[314382660,1708251034418,-500.0,0.00035616,2]
[314382661,1708251034427,-500.0,0.00035616,2]
[314382662,1708251034436,-500.0,0.00035616,2]
[314382663,1708251034446,-500.0,0.00035616,2]
[314382664,1708251034455,-500.0,0.00035616,2]
[314382665,1708251034465,-500.0,0.00035616,2]
[314382666,1708251034475,-500.0,0.00035616,2]
[314382667,1708251034484,-500.0,0.00035616,2]
[314382668,1708251034493,-500.0,0.00035616,2]
[314382669,1708251034505,-500.0,0.00035616,2]
[314382670,1708251034514,-190.2983424,0.00035616,2]
[314382671,1708251034523,-500.0,0.00035616,2]
[314382672,1708251034533,-500.0,0.00035616,2]
[314382673,1708251034542,-500.0,0.00035616,2]
[314382674,1708251034552,-573.32,0.00035616,2]
[314382675,1708251034562,-522.05746136,0.00035616,2]
[314382676,1708251034571,-500.0,0.00035616,2]
[314382677,1708251034581,-551.05582001,0.00035616,2]
[314382678,1708251034590,-500.0,0.00035616,2]
[314382679,1708251034599,-500.0,0.00035616,2]
[314382680,1708251034608,-500.0,0.00035616,2]
[314382681,1708251034617,-500.0,0.00035616,2]
[314382682,1708251034629,-500.0,0.00035616,2]
[314382683,1708251034640,-500.0,0.00035616,2]
[314382684,1708251034650,-500.0,0.00035616,2]
[314382685,1708251034659,-604.63233171,0.00035616,2]
[314382686,1708251034669,-500.0,0.00035616,2]
[314382687,1708251034679,-500.0,0.00035616,2]
[314382688,1708251034689,-531.10674217,0.00035616,2]
[314382689,1708251034699,-500.0,0.00035616,2]
[314382690,1708251034708,-500.0,0.00035616,2]
[314382691,1708251034719,-241.2,0.00035616,2]
[314382692,1708251034728,-500.0,0.00035616,2]
[314382693,1708251034737,-500.0,0.00035616,2]
[314382694,1708251034747,-500.0,0.00035616,2]
[314382695,1708251034756,-500.0,0.00035616,2]
[314382696,1708251034765,-500.0,0.00035616,2]
[314382697,1708251034775,-500.0,0.00035616,2]
[314382698,1708251034784,-500.0,0.00035616,2]
[314382699,1708251034793,-538.31812802,0.00035616,2]
[314382700,1708251034803,-549.98535097,0.00035616,2]
[314382701,1708251034812,-528.98969652,0.00035616,2]
[314382702,1708251034822,-505.58211773,0.00035616,2]
[314382703,1708251034831,-500.0,0.00035616,2]
[314382704,1708251034841,-500.0,0.00035616,2]
[314382705,1708251034852,-500.0,0.00035616,2]
[314382706,1708251034863,-500.0,0.00035616,2]
[314382707,1708251034873,-500.0,0.00035616,2]
[314382708,1708251034882,-500.0,0.00035616,2]
[314382709,1708251034892,-500.0,0.00035616,2]
[314382710,1708251034901,-367.34028472,0.00035616,2]
[314382711,1708251034910,-500.0,0.00035616,2]
[314382712,1708251034919,-508.927147,0.00035616,2]
[314382713,1708251034929,-513.25358559,0.00035616,2]
[314382714,1708251034938,-500.0,0.00035616,2]
[314382715,1708251034948,-500.0,0.00035616,2]
[314382716,1708251034957,-500.0,0.00035616,2]
[314382717,1708251034968,-500.0,0.00035616,2]
[314382718,1708251034977,-500.0,0.00035616,2]
[314382719,1708251034990,-500.0,0.00035616,2]
[314382720,1708251035008,-500.0,0.00035616,2]
[314382721,1708251035017,-500.0,0.00035616,2]
[314382722,1708251035027,-499.47426452,0.00035616,2]
[314382723,1708251035037,-548.92292794,0.00035616,2]
[314382724,1708251035047,-500.0,0.00035616,2]
[314382725,1708251035056,-500.0,0.00035616,2]
[314382726,1708251035066,-500.0,0.00035616,2]
[314382727,1708251035076,-500.0,0.00035616,2]
[314382728,1708251035086,-500.0,0.00035616,2]
[314382729,1708251035096,-500.0,0.00035616,2]
[314382730,1708251035106,-500.0,0.00035616,2]
[314382731,1708251035115,-500.0,0.00035616,2]
[314382732,1708251035125,-500.0,0.00035616,2]
[314382733,1708251035135,-434.47144233,0.00035616,2]
[314382734,1708251035145,-500.0,0.00035616,2]
[314382735,1708251035156,-500.0,0.00035616,2]
[314382736,1708251035167,-500.0,0.00035616,2]
[314382737,1708251035177,-500.0,0.00035616,2]
[314382738,1708251035186,-500.0,0.00035616,2]
[314382739,1708251035196,-500.0,0.00035616,2]
[314382740,1708251035206,-500.0,0.00035616,2]
[314382741,1708251035217,-500.0,0.00035616,2]
[314382742,1708251035227,-500.0,0.00035616,2]
[314382743,1708251035236,-500.0,0.00035616,2]
[314382744,1708251035246,-500.0,0.00035616,2]
[314382745,1708251035256,-500.0,0.00035616,2]
[314382746,1708251035267,-303.13902365,0.00035616,2]
[314382747,1708251035276,-500.0,0.00035616,2]
[314382748,1708251035286,-500.0,0.00035616,2]
[314382749,1708251035296,-500.0,0.00035616,2]
[314382750,1708251035305,-500.0,0.00035616,2]
[314382751,1708251035315,-500.0,0.00035616,2]
[314382752,1708251035325,-180.83,0.00035616,2]
[314382753,1708251035335,-500.0,0.00035616,2]
[314382754,1708251035345,-500.0,0.00035616,2]
[314382755,1708251035354,-500.0,0.00035616,2]
[314382756,1708251035365,-500.0,0.00035616,2]
[314382757,1708251035375,-500.0,0.00035616,2]
[314382758,1708251035384,-210.26110685,0.00035616,2]
[314382759,1708251035395,-541.77,0.00035616,2]
[314382760,1708251035405,-500.0,0.00035616,2]
[314382761,1708251035414,-500.0,0.00035616,2]
[314382762,1708251035424,-180.55846297,0.00035616,2]
[314382763,1708251035433,-541.77,0.00035616,2]
[314382764,1708251035444,-500.0,0.00035616,2]
[314382765,1708251035453,-541.77,0.00035616,2]
[314382766,1708251035464,-500.0,0.00035616,2]
[314382767,1708251035473,-541.77,0.00035616,2]
[314382768,1708251035482,-541.77,0.00035616,2]
[314382769,1708251035491,-500.0,0.00035616,2]
[314382770,1708251035500,-541.77,0.00035616,2]
[314382771,1708251035509,-500.0,0.00035616,2]
[314382772,1708251035518,-500.0,0.00035616,2]
[314382773,1708251035527,-500.0,0.00035616,2]
[314382774,1708251035540,-500.0,0.00035616,2]
[314382775,1708251035549,-500.0,0.00035616,2]
[314382776,1708251035559,-535.65593584,0.00035616,2]
[314382777,1708251035568,-500.0,0.00035616,2]
[314382778,1708251035578,-500.0,0.00035616,2]
[314382779,1708251035588,-500.0,0.00035616,2]
[314382780,1708251035597,-494.26926601,0.00035616,2]
[314382781,1708251035606,-500.0,0.00035616,2]
[314382782,1708251035616,-500.0,0.00035616,2]
[314382783,1708251035625,-500.0,0.00035616,2]
[314382784,1708251035635,-500.0,0.00035616,2]
[314382785,1708251035645,-500.0,0.00035616,2]
[314382786,1708251035655,-500.0,0.00035616,2]
[314382787,1708251035664,-500.0,0.00035616,2]
[314382788,1708251035675,-500.0,0.00035616,2]
[314382789,1708251035691,-500.0,0.00035616,2]
[314382790,1708251035701,-500.0,0.00035616,2]
[314382791,1708251035712,-500.0,0.00035616,2]
[314382792,1708251035723,-500.0,0.00035616,2]
[314382793,1708251035734,-500.0,0.00035616,2]
[314382794,1708251035744,-500.0,0.00035616,2]
[314382795,1708251035755,-500.0,0.00035616,2]
[314382796,1708251035765,-1097.61,0.00035616,2]
[314382797,1708251035776,-1097.61,0.00035616,2]
[314382798,1708251035787,-1097.61,0.00035616,2]
[314382799,1708251035798,-564.00175004,0.00035616,2]
[314382800,1708251035808,-1097.61,0.00035616,2]
[314382801,1708251035819,-1097.61,0.00035616,2]
[314382802,1708251035829,-558.06003556,0.00035616,2]
[314382803,1708251035838,-1097.61,0.00035616,2]
[314382804,1708251035848,-500.0,0.00035616,2]
[314382805,1708251035857,-500.0,0.00035616,2]
[314382806,1708251035867,-500.0,0.00035616,2]
[314382807,1708251035877,-500.0,0.00035616,2]
[314382808,1708251035887,-500.0,0.00035616,2]
[314382809,1708251035897,-500.0,0.00035616,2]
[314382810,1708251035907,-500.0,0.00035616,2]
[314382811,1708251035917,-500.0,0.00035616,2]
[314382812,1708251035926,-500.0,0.00035616,2]
[314382813,1708251035936,-500.0,0.00035616,2]
[314382814,1708251035946,-500.0,0.00035616,2]
[314382815,1708251035956,-260.85957948,0.00035616,2]
[314382816,1708251035966,-500.0,0.00035616,2]
[314382817,1708251035976,-500.0,0.00035616,2]
[314382818,1708251035985,-500.0,0.00035616,2]
[314382819,1708251035995,-500.0,0.00035616,2]
[314382820,1708251036005,-500.0,0.00035616,2]
[314382821,1708251036014,-500.0,0.00035616,2]
[314382822,1708251036024,-500.0,0.00035616,2]
[314382823,1708251036033,-500.0,0.00035616,2]
[314382824,1708251036042,-614.49562037,0.00035616,2]
[314382825,1708251036052,-500.0,0.00035616,2]
[314382826,1708251036062,-500.0,0.00035616,2]
[314382827,1708251036076,-500.0,0.00035616,2]
[314382828,1708251036086,-500.0,0.00035616,2]
[314382829,1708251036096,-500.0,0.00035616,2]
[314382830,1708251036105,-500.0,0.00035616,2]
[314382831,1708251036115,-500.0,0.00035616,2]
[314382832,1708251036125,-500.0,0.00035616,2]
[314382833,1708251036134,-500.0,0.00035616,2]
[314382834,1708251036144,-500.0,0.00035616,2]
[314382835,1708251036156,-500.0,0.00035616,2]
[314382836,1708251036168,-500.0,0.00035616,2]
[314382837,1708251036178,-500.0,0.00035616,2]
[314382838,1708251036187,-500.0,0.00035616,2]
[314382839,1708251036197,-500.0,0.00035616,2]
[314382840,1708251036207,-500.0,0.00035616,2]
[314382841,1708251036218,-500.0,0.00035616,2]
[314382842,1708251036228,-226.56916281,0.00035616,2]
[314382843,1708251036237,-1005.31,0.00035616,2]
[314382844,1708251036248,-1005.31,0.00035616,2]
[314382845,1708251036258,-1005.31,0.00035616,2]
[314382846,1708251036268,-1005.31,0.00035616,2]
[314382847,1708251036278,-1005.31,0.00035616,2]
[314382848,1708251036287,-1005.31,0.00035616,2]
[314382849,1708251036297,-500.0,0.00035616,2]
[314382850,1708251036307,-500.0,0.00035616,2]
[314382851,1708251036316,-344.42516709,0.00035616,2]
[314382852,1708251036325,-500.0,0.00035616,2]
[314382853,1708251036335,-500.0,0.00035616,2]
[314382854,1708251036345,-500.0,0.00035616,2]
[314382855,1708251036355,-500.0,0.00035616,2]
[314382856,1708251036364,-500.0,0.00035616,2]
[314382857,1708251036373,-500.0,0.00035616,2]
[314382858,1708251036382,-315.97956276,0.00035616,2]
[314382859,1708251036392,-502.19,0.00035616,2]
[314382860,1708251036402,-502.19,0.00035616,2]
[314382861,1708251036411,-502.19,0.00035616,2]
[314382862,1708251036421,-500.0,0.00035616,2]
[314382863,1708251036431,-502.19,0.00035616,2]
[314382864,1708251036440,-502.19,0.00035616,2]
[314382865,1708251036449,-502.19,0.00035616,2]
[314382866,1708251036459,-500.0,0.00035616,2]
[314382867,1708251036471,-500.0,0.00035616,2]
[314382868,1708251036481,-500.0,0.00035616,2]
[314382869,1708251036490,-198.10181552,0.00035616,2]
[314382870,1708251036500,-500.0,0.00035616,2]
[314382871,1708251036510,-500.0,0.00035616,2]
[314382872,1708251036519,-500.0,0.00035616,2]
[314382873,1708251036529,-500.0,0.00035616,2]
[314382874,1708251036539,-500.0,0.00035616,2]
[314382875,1708251036548,-500.0,0.00035616,2]
[314382876,1708251036558,-561.67107721,0.00035616,2]
[314382877,1708251036567,-500.0,0.00035616,2]
[314382878,1708251036577,-500.0,0.00035616,2]
[314382879,1708251036587,-500.0,0.00035616,2]
[314382880,1708251036598,-992.11,0.00035616,2]
[314382881,1708251036607,-992.11,0.00035616,2]
[314382882,1708251036618,-992.11,0.00035616,2]
[314382883,1708251036627,-992.11,0.00035616,2]
[314382884,1708251036637,-992.11,0.00035616,2]
[314382885,1708251036647,-992.11,0.00035616,2]
[314382886,1708251036656,-500.0,0.00035616,2]
[314382887,1708251036666,-500.0,0.00035616,2]
[314382888,1708251036676,-332.44602217,0.00035616,2]
[314382889,1708251036686,-547.3731488,0.00035616,2]
[314382890,1708251036696,-500.0,0.00035616,2]
[314382891,1708251036705,-500.0,0.00035616,2]
[314382892,1708251036717,-500.0,0.00035616,2]
[314382893,1708251036726,-500.0,0.00035616,2]
[314382894,1708251036737,-500.0,0.00035616,2]
[314382895,1708251036747,-500.0,0.00035616,2]
[314382896,1708251036756,-500.0,0.00035616,2]
[314382897,1708251036765,-500.0,0.00035616,2]
[314382898,1708251036775,-500.0,0.00035616,2]
[314382899,1708251036784,-1474.87,0.00035616,2]
[314382900,1708251036793,-323.33975631,0.00035616,2]
[314382901,1708251036802,-1474.87,0.00035616,2]
[314382902,1708251036811,-1474.87,0.00035616,2]
[314382903,1708251036821,-500.0,0.00035616,2]
[314382904,1708251036830,-1474.87,0.00035616,2]
[314382905,1708251036840,-1474.87,0.00035616,2]
[314382906,1708251036849,-1474.87,0.00035616,2]
[314382907,1708251036859,-552.32,0.00035616,2]
[314382908,1708251036868,-364.21530531,0.00035616,2]
[314382909,1708251036877,-500.0,0.00035616,2]